[Event "Titled Tuesday Blitz August 1 Late 2023"]
[White "MrLudus"]
[Black "Jorajuria Mendoza, Algol"]
[BlackFideId "5128897"]
[WhiteElo "2077"]
[BlackElo "2403"]
[Result "1-0"]
[Round "6"]
[TimeControl "180+1"]
[Date "2023.08.01"]
[WhiteClock "0:01:44"]
[BlackClock "0:00:56"]
[Board "120"]

1. e4 {[%clk 0:03:00]}  c5 {[%clk 0:02:58]} 2. Nf3 {[%clk 0:03:01]}  Nc6 {[%clk 0:02:57]} 3. d4 {[%clk 0:03:02]}  cxd4 {[%clk 0:02:58]} 4. Nxd4 {[%clk 0:03:02]}  Nf6 {[%clk 0:02:58]} 5. Nc3 {[%clk 0:03:03]}  e5 {[%clk 0:02:59]} 6. Ndb5 {[%clk 0:03:04]}  d6 {[%clk 0:03:00]} 7. Bg5 {[%clk 0:03:04]}  a6 {[%clk 0:03:00]} 8. Na3 {[%clk 0:03:05]}  b5 {[%clk 0:03:00]} 9. Nd5 {[%clk 0:03:06]}  Be7 {[%clk 0:03:01]} 10. Bxf6 {[%clk 0:03:06]}  Bxf6 {[%clk 0:03:01]} 11. c4 {[%clk 0:03:07]}  b4 {[%clk 0:03:01]} 12. Nc2 {[%clk 0:03:08]}  O-O {[%clk 0:02:53]} 13. g3 {[%clk 0:03:08]}  a5 {[%clk 0:02:48]} 14. h4 {[%clk 0:03:08]}  g6 {[%clk 0:02:28]} 15. Bh3 {[%clk 0:03:06]}  Be6 {[%clk 0:02:24]} 16. h5 {[%clk 0:03:06]}  Bg5 {[%clk 0:01:50]} 17. hxg6 {[%clk 0:02:50]}  hxg6 {[%clk 0:01:50]} 18. Bxe6 {[%clk 0:02:49]}  fxe6 {[%clk 0:01:49]} 19. Nde3 {[%clk 0:02:49]}  Bxe3 {[%clk 0:01:37]} 20. Nxe3 {[%clk 0:02:48]}  Qg5 {[%clk 0:01:36]} 21. Qxd6 {[%clk 0:02:27]}  Nd4 {[%clk 0:01:35]} 22. O-O-O {[%clk 0:02:27]}  Rxf2 {[%clk 0:01:26]} 23. Rd3 {[%clk 0:02:03]}  Raf8 {[%clk 0:01:20]} 24. Kb1 {[%clk 0:01:54]}  Qxe3 {[%clk 0:01:13]} 25. Rxe3 {[%clk 0:01:46]}  Rf1+ {[%clk 0:01:13]} 26. Re1 {[%clk 0:01:47]}  R1f2 {[%clk 0:00:56]} 27. Qxe5 {[%clk 0:01:44]} 1-0


[Site "https://www.chess.com"]

[Event "Titled Tuesday Blitz August 1 Late 2023"]
[White "Burke, Paul"]
[Black "Balla, Tamas-Kristof"]
[WhiteFideId "2605767"]
[BlackFideId "1208497"]
[WhiteElo "1904"]
[BlackElo "2373"]
[Result "0-1"]
[Round "6"]
[TimeControl "180+1"]
[Date "2023.08.01"]
[WhiteClock "0:01:30"]
[BlackClock "0:01:11"]
[Board "122"]

1. e4 {[%clk 0:03:00]}  c5 {[%clk 0:02:54]} 2. d4 {[%clk 0:02:59]}  cxd4 {[%clk 0:02:54]} 3. c3 {[%clk 0:03:00]}  Nf6 {[%clk 0:02:54]} 4. Bd3 {[%clk 0:02:58]}  dxc3 {[%clk 0:02:50]} 5. Nxc3 {[%clk 0:02:58]}  Nc6 {[%clk 0:02:48]} 6. Nf3 {[%clk 0:02:57]}  d6 {[%clk 0:02:48]} 7. Bc4 {[%clk 0:02:57]}  g6 {[%clk 0:02:42]} 8. Bg5 {[%clk 0:02:54]}  Bg7 {[%clk 0:02:42]} 9. O-O {[%clk 0:02:41]}  O-O {[%clk 0:02:41]} 10. h3 {[%clk 0:02:41]}  a6 {[%clk 0:02:35]} 11. a3 {[%clk 0:02:40]}  b5 {[%clk 0:02:35]} 12. Ba2 {[%clk 0:02:39]}  Bb7 {[%clk 0:02:35]} 13. Rc1 {[%clk 0:02:35]}  Qd7 {[%clk 0:02:27]} 14. Bxf6 {[%clk 0:02:28]}  Bxf6 {[%clk 0:02:26]} 15. Nd5 {[%clk 0:02:27]}  Bg7 {[%clk 0:02:24]} 16. Nb6 {[%clk 0:02:27]}  Qc7 {[%clk 0:01:46]} 17. Nxa8 {[%clk 0:02:26]}  Rxa8 {[%clk 0:01:43]} 18. Bd5 {[%clk 0:02:21]}  Bxb2 {[%clk 0:01:29]} 19. Rc2 {[%clk 0:02:20]}  Bxa3 {[%clk 0:01:29]} 20. Nd4 {[%clk 0:02:20]}  Bc5 {[%clk 0:01:26]} 21. Nxc6 {[%clk 0:02:03]}  Bxc6 {[%clk 0:01:26]} 22. Bxc6 {[%clk 0:02:02]}  Qxc6 {[%clk 0:01:27]} 23. Qd5 {[%clk 0:02:00]}  Qxd5 {[%clk 0:01:26]} 24. exd5 {[%clk 0:01:59]}  a5 {[%clk 0:01:23]} 25. Re1 {[%clk 0:01:59]}  a4 {[%clk 0:01:19]} 26. Rxe7 {[%clk 0:01:56]}  a3 {[%clk 0:01:19]} 27. Ra2 {[%clk 0:01:54]}  b4 {[%clk 0:01:15]} 28. Rb7 {[%clk 0:01:53]}  Re8 {[%clk 0:01:14]} 29. Rd2 {[%clk 0:01:37]}  Re1+ {[%clk 0:01:11]} 30. Kh2 {[%clk 0:01:30]}  Rb1 {[%clk 0:01:11]} 0-1


[Site "https://www.chess.com"]

[Event "Titled Tuesday Blitz August 1 Late 2023"]
[White "szachmistrz2500"]
[Black "Vafin, Ayrat"]
[BlackFideId "4146530"]
[WhiteElo "2443"]
[BlackElo "2276"]
[Result "0-1"]
[Round "6"]
[TimeControl "180+1"]
[Date "2023.08.01"]
[WhiteClock "0:00:20"]
[BlackClock "0:00:08"]
[Board "124"]

1. d4 {[%clk 0:03:00]}  d5 {[%clk 0:02:58]} 2. Nf3 {[%clk 0:02:59]}  Nf6 {[%clk 0:02:58]} 3. c4 {[%clk 0:03:00]}  e6 {[%clk 0:02:59]} 4. Nc3 {[%clk 0:03:00]}  Be7 {[%clk 0:02:59]} 5. Bg5 {[%clk 0:03:00]}  O-O {[%clk 0:02:59]} 6. e3 {[%clk 0:03:00]}  h6 {[%clk 0:02:59]} 7. Bh4 {[%clk 0:03:00]}  Ne4 {[%clk 0:02:59]} 8. Bxe7 {[%clk 0:02:56]}  Qxe7 {[%clk 0:03:00]} 9. cxd5 {[%clk 0:02:54]}  Nxc3 {[%clk 0:03:00]} 10. bxc3 {[%clk 0:02:55]}  exd5 {[%clk 0:03:01]} 11. Be2 {[%clk 0:02:50]}  c5 {[%clk 0:02:57]} 12. O-O {[%clk 0:02:49]}  Nc6 {[%clk 0:02:57]} 13. Rb1 {[%clk 0:02:48]}  b6 {[%clk 0:02:56]} 14. dxc5 {[%clk 0:02:44]}  Qxc5 {[%clk 0:02:55]} 15. Nd4 {[%clk 0:02:33]}  Nxd4 {[%clk 0:02:50]} 16. cxd4 {[%clk 0:02:29]}  Qd6 {[%clk 0:02:44]} 17. Qb3 {[%clk 0:02:28]}  Bf5 {[%clk 0:02:38]} 18. Rbc1 {[%clk 0:02:28]}  Rfc8 {[%clk 0:02:35]} 19. Ba6 {[%clk 0:02:25]}  Rxc1 {[%clk 0:02:32]} 20. Rxc1 {[%clk 0:02:26]}  Be4 {[%clk 0:02:06]} 21. f3 {[%clk 0:02:23]}  Bf5 {[%clk 0:02:02]} 22. Bb7 {[%clk 0:02:23]}  Rd8 {[%clk 0:02:00]} 23. a4 {[%clk 0:02:19]}  h5 {[%clk 0:01:45]} 24. Rc3 {[%clk 0:02:08]}  h4 {[%clk 0:01:45]} 25. Qb5 {[%clk 0:02:05]}  h3 {[%clk 0:01:39]} 26. g3 {[%clk 0:02:02]}  Bg6 {[%clk 0:01:23]} 27. Bc8 {[%clk 0:01:51]}  Qf6 {[%clk 0:01:10]} 28. Kf2 {[%clk 0:01:46]}  Bf5 {[%clk 0:01:09]} 29. Rc6 {[%clk 0:01:25]}  Be6 {[%clk 0:00:41]} 30. Ba6 {[%clk 0:01:19]}  Bd7 {[%clk 0:00:27]} 31. Rxf6 {[%clk 0:01:10]}  Bxb5 {[%clk 0:00:27]} 32. Rxf7 {[%clk 0:01:01]}  Kxf7 {[%clk 0:00:19]} 33. axb5 {[%clk 0:01:00]}  Rd7 {[%clk 0:00:15]} 34. g4 {[%clk 0:00:54]}  Rc7 {[%clk 0:00:14]} 35. g5 {[%clk 0:00:50]}  Kg6 {[%clk 0:00:12]} 36. f4 {[%clk 0:00:50]}  Kf5 {[%clk 0:00:12]} 37. Kf3 {[%clk 0:00:49]}  g6 {[%clk 0:00:12]} 38. Kg3 {[%clk 0:00:46]}  Rc2 {[%clk 0:00:09]} 39. Bb7 {[%clk 0:00:43]}  Ke4 {[%clk 0:00:08]} 40. Kxh3 {[%clk 0:00:39]}  Rc3 {[%clk 0:00:09]} 41. Kg4 {[%clk 0:00:38]}  Rxe3 {[%clk 0:00:09]} 42. Bc8 {[%clk 0:00:35]}  Kxd4 {[%clk 0:00:08]} 43. f5 {[%clk 0:00:34]}  gxf5+ {[%clk 0:00:08]} 44. Bxf5 {[%clk 0:00:35]}  Ke5 {[%clk 0:00:09]} 45. h4 {[%clk 0:00:34]}  Re1 {[%clk 0:00:09]} 46. Bc2 {[%clk 0:00:31]}  d4 {[%clk 0:00:09]} 47. h5 {[%clk 0:00:31]}  Rg1+ {[%clk 0:00:09]} 48. Kh4 {[%clk 0:00:31]}  Kf4 {[%clk 0:00:09]} 49. Kh3 {[%clk 0:00:25]}  Kxg5 {[%clk 0:00:10]} 50. Kh2 {[%clk 0:00:25]}  Rc1 {[%clk 0:00:09]} 51. Be4 {[%clk 0:00:25]}  Re1 {[%clk 0:00:08]} 52. Bg6 {[%clk 0:00:24]}  Re3 {[%clk 0:00:07]} 53. Kg2 {[%clk 0:00:24]}  d3 {[%clk 0:00:07]} 54. Kf2 {[%clk 0:00:24]}  d2 {[%clk 0:00:08]} 55. Bc2 {[%clk 0:00:20]}  Re1 {[%clk 0:00:08]} 0-1


[Site "https://www.chess.com"]

[Event "Titled Tuesday Blitz August 1 Late 2023"]
[White "Vaglio Munoz, Jaime"]
[Black "Polaczek, Richard"]
[WhiteFideId "6500145"]
[BlackFideId "200026"]
[WhiteElo "2276"]
[BlackElo "2426"]
[Result "0-1"]
[Round "6"]
[TimeControl "180+1"]
[Date "2023.08.01"]
[WhiteClock "0:00:07"]
[BlackClock "0:00:01"]
[Board "125"]

1. Nf3 {[%clk 0:02:47]}  d5 {[%clk 0:02:58]} 2. c4 {[%clk 0:02:47]}  d4 {[%clk 0:02:58]} 3. g3 {[%clk 0:02:46]}  Nc6 {[%clk 0:02:56]} 4. Bg2 {[%clk 0:02:45]}  e5 {[%clk 0:02:55]} 5. d3 {[%clk 0:02:45]}  Nf6 {[%clk 0:02:55]} 6. O-O {[%clk 0:02:45]}  a5 {[%clk 0:02:54]} 7. e4 {[%clk 0:02:45]}  Be7 {[%clk 0:02:47]} 8. h3 {[%clk 0:02:40]}  O-O {[%clk 0:02:45]} 9. b3 {[%clk 0:02:39]}  Nd7 {[%clk 0:02:42]} 10. a3 {[%clk 0:02:34]}  Nc5 {[%clk 0:02:39]} 11. Re1 {[%clk 0:02:32]}  Bd6 {[%clk 0:02:28]} 12. Bf1 {[%clk 0:02:30]}  f5 {[%clk 0:02:24]} 13. Nbd2 {[%clk 0:02:24]}  fxe4 {[%clk 0:02:10]} 14. Nxe4 {[%clk 0:02:22]}  Nxe4 {[%clk 0:02:09]} 15. Rxe4 {[%clk 0:02:23]}  Qf6 {[%clk 0:01:57]} 16. Bg2 {[%clk 0:02:19]}  Bf5 {[%clk 0:01:55]} 17. Re1 {[%clk 0:02:17]}  h6 {[%clk 0:01:37]} 18. Ra2 {[%clk 0:02:16]}  Bh7 {[%clk 0:01:33]} 19. g4 {[%clk 0:02:11]}  Rae8 {[%clk 0:01:21]} 20. g5 {[%clk 0:02:03]}  Qf5 {[%clk 0:01:07]} 21. Nh4 {[%clk 0:01:52]}  Qxd3 {[%clk 0:01:06]} 22. gxh6 {[%clk 0:01:27]}  Qxd1 {[%clk 0:01:03]} 23. Rxd1 {[%clk 0:01:28]}  e4 {[%clk 0:00:58]} 24. hxg7 {[%clk 0:01:27]}  Kxg7 {[%clk 0:00:56]} 25. Bf1 {[%clk 0:01:13]}  Bf4 {[%clk 0:00:53]} 26. Ng2 {[%clk 0:01:10]}  Bxc1 {[%clk 0:00:51]} 27. Rxc1 {[%clk 0:01:11]}  Rf3 {[%clk 0:00:46]} 28. Rb2 {[%clk 0:01:05]}  Ref8 {[%clk 0:00:38]} 29. b4 {[%clk 0:01:04]}  Rxa3 {[%clk 0:00:36]} 30. b5 {[%clk 0:01:02]}  Nb4 {[%clk 0:00:36]} 31. c5 {[%clk 0:00:42]}  Nd3 {[%clk 0:00:34]} 32. Bxd3 {[%clk 0:00:41]}  exd3 {[%clk 0:00:33]} 33. Rc4 {[%clk 0:00:38]}  Rd8 {[%clk 0:00:29]} 34. Rd2 {[%clk 0:00:36]}  Rc3 {[%clk 0:00:28]} 35. Ra4 {[%clk 0:00:33]}  Rc2 {[%clk 0:00:27]} 36. Ra2 {[%clk 0:00:31]}  Rxa2 {[%clk 0:00:25]} 37. Rxa2 {[%clk 0:00:30]}  Rd5 {[%clk 0:00:25]} 38. c6 {[%clk 0:00:29]}  b6 {[%clk 0:00:24]} 39. Nf4 {[%clk 0:00:29]}  Rxb5 {[%clk 0:00:21]} 40. Ne6+ {[%clk 0:00:28]}  Kf6 {[%clk 0:00:20]} 41. Nxc7 {[%clk 0:00:28]}  Rb1+ {[%clk 0:00:20]} 42. Kg2 {[%clk 0:00:27]}  Rc1 {[%clk 0:00:19]} 43. Nd5+ {[%clk 0:00:22]}  Ke5 {[%clk 0:00:19]} 44. Nf4 {[%clk 0:00:21]}  Rc2 {[%clk 0:00:18]} 45. Ra1 {[%clk 0:00:20]}  d2 {[%clk 0:00:17]} 46. Ne2 {[%clk 0:00:18]}  d3 {[%clk 0:00:15]} 47. Ng3 {[%clk 0:00:18]}  Rc1 {[%clk 0:00:14]} 48. Ra4 {[%clk 0:00:17]}  d1=Q {[%clk 0:00:13]} 49. Rh4 {[%clk 0:00:13]}  Qg1+ {[%clk 0:00:12]} 50. Kf3 {[%clk 0:00:14]}  Rc2 {[%clk 0:00:11]} 51. Rh5+ {[%clk 0:00:13]}  Ke6 {[%clk 0:00:11]} 52. Rh6+ {[%clk 0:00:13]}  Kd5 {[%clk 0:00:11]} 53. Rh5+ {[%clk 0:00:13]}  Kxc6 {[%clk 0:00:11]} 54. Rh6+ {[%clk 0:00:13]}  Kb5 {[%clk 0:00:11]} 55. Rxh7 {[%clk 0:00:13]}  Rxf2+ {[%clk 0:00:10]} 56. Kg4 {[%clk 0:00:14]}  Qg2 {[%clk 0:00:09]} 57. Rh5+ {[%clk 0:00:14]}  Ka6 {[%clk 0:00:09]} 58. Rg5 {[%clk 0:00:14]}  Rf3 {[%clk 0:00:08]} 59. Kh4 {[%clk 0:00:13]}  Rf4+ {[%clk 0:00:08]} 60. Kh5 {[%clk 0:00:13]}  Qxh3+ {[%clk 0:00:08]} 61. Kg6 {[%clk 0:00:12]}  Rf3 {[%clk 0:00:08]} 62. Nh5 {[%clk 0:00:12]}  Qe6+ {[%clk 0:00:06]} 63. Kh7 {[%clk 0:00:12]}  Qe4+ {[%clk 0:00:05]} 64. Kh6 {[%clk 0:00:12]}  d2 {[%clk 0:00:04]} 65. Rg8 {[%clk 0:00:10]}  Qe3+ {[%clk 0:00:04]} 66. Kh7 {[%clk 0:00:10]}  Qe4+ {[%clk 0:00:04]} 67. Kh6 {[%clk 0:00:09]}  Rh3 {[%clk 0:00:03]} 68. Rg5 {[%clk 0:00:06]}  Qe3 {[%clk 0:00:03]} 69. Kg6 {[%clk 0:00:05]}  d1=Q {[%clk 0:00:03]} 70. Rxa5+ {[%clk 0:00:05]}  Kxa5 {[%clk 0:00:02]} 71. Nf6 {[%clk 0:00:06]}  Qd6 {[%clk 0:00:02]} 72. Kf7 {[%clk 0:00:07]}  Qee6+ {[%clk 0:00:01]} 73. Kg6 {[%clk 0:00:07]}  Qxf6# {[%clk 0:00:01]} 0-1


[Site "https://www.chess.com"]

[Event "Titled Tuesday Blitz August 1 Late 2023"]
[White "Osmonbekov, Talaibek"]
[Black "Jahnz, Fabian"]
[WhiteFideId "2017253"]
[BlackFideId "4653300"]
[WhiteElo "2198"]
[BlackElo "2391"]
[Result "1-0"]
[Round "6"]
[TimeControl "180+1"]
[Date "2023.08.01"]
[WhiteClock "0:00:15"]
[BlackClock "0:00:01"]
[Board "127"]

1. d4 {[%clk 0:03:00]}  d5 {[%clk 0:02:59]} 2. Nc3 {[%clk 0:03:01]}  c6 {[%clk 0:02:58]} 3. Bf4 {[%clk 0:03:01]}  Bf5 {[%clk 0:02:58]} 4. e3 {[%clk 0:03:01]}  e6 {[%clk 0:02:58]} 5. Nf3 {[%clk 0:03:01]}  Nf6 {[%clk 0:02:58]} 6. Ne5 {[%clk 0:03:01]}  Nbd7 {[%clk 0:02:58]} 7. g4 {[%clk 0:03:02]}  Nxe5 {[%clk 0:02:38]} 8. gxf5 {[%clk 0:03:01]}  Ned7 {[%clk 0:02:26]} 9. fxe6 {[%clk 0:03:01]}  fxe6 {[%clk 0:02:26]} 10. Rg1 {[%clk 0:02:50]}  g6 {[%clk 0:02:13]} 11. Bh3 {[%clk 0:02:26]}  Qe7 {[%clk 0:02:11]} 12. f3 {[%clk 0:01:54]}  Bg7 {[%clk 0:02:10]} 13. Qd3 {[%clk 0:01:53]}  e5 {[%clk 0:01:58]} 14. Bg5 {[%clk 0:01:41]}  exd4 {[%clk 0:01:51]} 15. Qxd4 {[%clk 0:01:38]}  O-O {[%clk 0:01:48]} 16. O-O-O {[%clk 0:01:34]}  b5 {[%clk 0:01:09]} 17. Qh4 {[%clk 0:01:22]}  Ne5 {[%clk 0:01:00]} 18. Rdf1 {[%clk 0:01:15]}  b4 {[%clk 0:00:56]} 19. Ne2 {[%clk 0:01:05]}  Nc4 {[%clk 0:00:55]} 20. Nd4 {[%clk 0:01:04]}  Qe5 {[%clk 0:00:31]} 21. b3 {[%clk 0:00:21]}  Na3 {[%clk 0:00:28]} 22. Bf4 {[%clk 0:00:17]}  Qh5 {[%clk 0:00:16]} 23. Qg3 {[%clk 0:00:17]}  c5 {[%clk 0:00:14]} 24. Ne6 {[%clk 0:00:17]}  Rf7 {[%clk 0:00:14]} 25. Bg4 {[%clk 0:00:17]}  Nxg4 {[%clk 0:00:12]} 26. fxg4 {[%clk 0:00:18]}  Rxf4 {[%clk 0:00:07]} 27. gxh5 {[%clk 0:00:17]}  Rxf1+ {[%clk 0:00:07]} 28. Rxf1 {[%clk 0:00:18]}  Re8 {[%clk 0:00:07]} 29. Nxg7 {[%clk 0:00:17]}  Kxg7 {[%clk 0:00:07]} 30. hxg6 {[%clk 0:00:17]}  hxg6 {[%clk 0:00:06]} 31. Qc7+ {[%clk 0:00:18]}  Kh6 {[%clk 0:00:05]} 32. Qxc5 {[%clk 0:00:18]}  Re4 {[%clk 0:00:05]} 33. Qxd5 {[%clk 0:00:18]}  Rxe3 {[%clk 0:00:05]} 34. Qb7 {[%clk 0:00:16]}  Rc3 {[%clk 0:00:06]} 35. Rf2 {[%clk 0:00:15]}  Re3 {[%clk 0:00:04]} 36. Qxb4 {[%clk 0:00:15]}  Re1+ {[%clk 0:00:04]} 37. Kb2 {[%clk 0:00:15]}  Nb1 {[%clk 0:00:03]} 38. Qh4+ {[%clk 0:00:14]}  Kg7 {[%clk 0:00:03]} 39. Rf7+ {[%clk 0:00:14]}  Kxf7 {[%clk 0:00:01]} 40. Qxe1 {[%clk 0:00:15]} 1-0


[Site "https://www.chess.com"]

[Event "Titled Tuesday Blitz August 1 Late 2023"]
[White "Haitin, Ilja"]
[Black "Vila Dupla, Aurelio"]
[WhiteFideId "4501764"]
[BlackFideId "2203383"]
[WhiteElo "2366"]
[BlackElo "2157"]
[Result "1-0"]
[Round "6"]
[TimeControl "180+1"]
[Date "2023.08.01"]
[WhiteClock "0:02:15"]
[BlackClock "0:01:37"]
[Board "128"]

1. Nf3 {[%clk 0:03:00]}  Nf6 {[%clk 0:02:59]} 2. b3 {[%clk 0:02:59]}  d5 {[%clk 0:02:56]} 3. Bb2 {[%clk 0:02:56]}  Bf5 {[%clk 0:02:56]} 4. e3 {[%clk 0:02:50]}  e6 {[%clk 0:02:56]} 5. g3 {[%clk 0:02:50]}  Be7 {[%clk 0:02:52]} 6. Bg2 {[%clk 0:02:49]}  O-O {[%clk 0:02:52]} 7. O-O {[%clk 0:02:50]}  h6 {[%clk 0:02:52]} 8. d3 {[%clk 0:02:51]}  c5 {[%clk 0:02:42]} 9. Nbd2 {[%clk 0:02:51]}  Bg4 {[%clk 0:02:38]} 10. h3 {[%clk 0:02:51]}  Bh5 {[%clk 0:02:37]} 11. g4 {[%clk 0:02:49]}  Bg6 {[%clk 0:02:37]} 12. Ne5 {[%clk 0:02:50]}  Bh7 {[%clk 0:02:36]} 13. f4 {[%clk 0:02:50]}  Nfd7 {[%clk 0:02:21]} 14. Qf3 {[%clk 0:02:43]}  Bf6 {[%clk 0:02:20]} 15. Rae1 {[%clk 0:02:41]}  Nxe5 {[%clk 0:01:56]} 16. fxe5 {[%clk 0:02:35]}  Bh4 {[%clk 0:01:53]} 17. Re2 {[%clk 0:02:34]}  f5 {[%clk 0:01:48]} 18. gxf5 {[%clk 0:02:17]}  Bf6 {[%clk 0:01:37]} 19. exf6 {[%clk 0:02:15]} 1-0


[Site "https://www.chess.com"]

[Event "Titled Tuesday Blitz August 1 Late 2023"]
[White "Elissalt Cardenas, Hector"]
[Black "Aung Thant Zin"]
[WhiteFideId "3500632"]
[BlackFideId "13000063"]
[WhiteElo "2353"]
[BlackElo "2157"]
[Result "1-0"]
[Round "6"]
[TimeControl "180+1"]
[Date "2023.08.01"]
[WhiteClock "0:00:19"]
[BlackClock "0:00:14"]
[Board "129"]

1. d4 {[%clk 0:03:00]}  Nf6 {[%clk 0:02:49]} 2. c4 {[%clk 0:03:00]}  e6 {[%clk 0:02:50]} 3. Nc3 {[%clk 0:02:58]}  Bb4 {[%clk 0:02:49]} 4. e3 {[%clk 0:02:54]}  c5 {[%clk 0:02:49]} 5. Bd3 {[%clk 0:02:53]}  Nc6 {[%clk 0:02:49]} 6. Ne2 {[%clk 0:02:52]}  d6 {[%clk 0:02:49]} 7. O-O {[%clk 0:02:47]}  Bxc3 {[%clk 0:02:48]} 8. bxc3 {[%clk 0:02:43]}  e5 {[%clk 0:02:49]} 9. Ng3 {[%clk 0:02:36]}  O-O {[%clk 0:02:46]} 10. d5 {[%clk 0:02:35]}  Na5 {[%clk 0:02:45]} 11. f4 {[%clk 0:02:24]}  e4 {[%clk 0:02:36]} 12. Nxe4 {[%clk 0:02:20]}  Nxe4 {[%clk 0:02:27]} 13. Bxe4 {[%clk 0:02:20]}  Nxc4 {[%clk 0:02:25]} 14. Bd3 {[%clk 0:02:20]}  Nb6 {[%clk 0:02:15]} 15. c4 {[%clk 0:02:17]}  f5 {[%clk 0:02:14]} 16. Bb2 {[%clk 0:02:14]}  Qe7 {[%clk 0:02:13]} 17. Re1 {[%clk 0:02:11]}  Bd7 {[%clk 0:02:13]} 18. Rb1 {[%clk 0:02:04]}  Rae8 {[%clk 0:02:11]} 19. Qd2 {[%clk 0:02:01]}  Na4 {[%clk 0:02:00]} 20. Ba1 {[%clk 0:02:01]}  b5 {[%clk 0:01:34]} 21. cxb5 {[%clk 0:01:55]}  Nb6 {[%clk 0:01:34]} 22. Kh1 {[%clk 0:01:19]}  Kh8 {[%clk 0:01:28]} 23. Bc2 {[%clk 0:01:12]}  Qf7 {[%clk 0:01:25]} 24. a4 {[%clk 0:01:02]}  Qxd5 {[%clk 0:01:07]} 25. Qc3 {[%clk 0:01:01]}  Qf7 {[%clk 0:01:01]} 26. Rbd1 {[%clk 0:00:58]}  Re6 {[%clk 0:00:57]} 27. a5 {[%clk 0:00:54]}  Bxb5 {[%clk 0:00:43]} 28. axb6 {[%clk 0:00:48]}  Rg6 {[%clk 0:00:43]} 29. bxa7 {[%clk 0:00:34]}  Bc6 {[%clk 0:00:42]} 30. Rd2 {[%clk 0:00:34]}  Qxa7 {[%clk 0:00:40]} 31. e4 {[%clk 0:00:28]}  Re8 {[%clk 0:00:34]} 32. Rde2 {[%clk 0:00:24]}  Re7 {[%clk 0:00:29]} 33. exf5 {[%clk 0:00:22]}  Rh6 {[%clk 0:00:14]} 34. Rxe7 {[%clk 0:00:19]} 1-0


[Site "https://www.chess.com"]

[Event "Titled Tuesday Blitz August 1 Late 2023"]
[White "Curtis, John"]
[Black "Srdanovic, Jovana"]
[WhiteFideId "3200256"]
[BlackFideId "954810"]
[WhiteElo "2092"]
[BlackElo "2347"]
[Result "0-1"]
[Round "6"]
[TimeControl "180+1"]
[Date "2023.08.01"]
[WhiteClock "0:00:00"]
[BlackClock "0:00:04"]
[Board "130"]

1. e4 {[%clk 0:02:51]}  e5 {[%clk 0:02:56]} 2. Nf3 {[%clk 0:02:50]}  Nc6 {[%clk 0:02:56]} 3. Bb5 {[%clk 0:02:49]}  a6 {[%clk 0:02:53]} 4. Ba4 {[%clk 0:02:48]}  d6 {[%clk 0:02:53]} 5. O-O {[%clk 0:02:46]}  Bd7 {[%clk 0:02:50]} 6. c3 {[%clk 0:02:45]}  g6 {[%clk 0:02:43]} 7. d4 {[%clk 0:02:45]}  Bg7 {[%clk 0:02:43]} 8. Bg5 {[%clk 0:02:40]}  f6 {[%clk 0:02:40]} 9. Be3 {[%clk 0:02:29]}  Nge7 {[%clk 0:02:31]} 10. d5 {[%clk 0:02:11]}  Nb8 {[%clk 0:02:31]} 11. Bxd7+ {[%clk 0:02:09]}  Nxd7 {[%clk 0:02:32]} 12. c4 {[%clk 0:02:09]}  O-O {[%clk 0:02:18]} 13. Nc3 {[%clk 0:02:08]}  h6 {[%clk 0:02:14]} 14. Ne1 {[%clk 0:02:02]}  f5 {[%clk 0:02:01]} 15. f3 {[%clk 0:02:02]}  f4 {[%clk 0:01:48]} 16. Bf2 {[%clk 0:01:57]}  g5 {[%clk 0:01:48]} 17. Nd3 {[%clk 0:01:50]}  Ng6 {[%clk 0:01:41]} 18. c5 {[%clk 0:01:45]}  Qf6 {[%clk 0:01:28]} 19. Qa4 {[%clk 0:01:39]}  b5 {[%clk 0:01:15]} 20. cxb6 {[%clk 0:01:33]}  Nxb6 {[%clk 0:01:15]} 21. Bxb6 {[%clk 0:01:32]}  cxb6 {[%clk 0:01:15]} 22. Qb3 {[%clk 0:00:53]}  Rab8 {[%clk 0:01:12]} 23. Nf2 {[%clk 0:00:42]}  h5 {[%clk 0:01:11]} 24. Rac1 {[%clk 0:00:40]}  Nh4 {[%clk 0:01:03]} 25. h3 {[%clk 0:00:35]}  Qg6 {[%clk 0:00:46]} 26. a3 {[%clk 0:00:32]}  Bf6 {[%clk 0:00:44]} 27. Qd1 {[%clk 0:00:17]}  b5 {[%clk 0:00:40]} 28. Qe2 {[%clk 0:00:17]}  Bd8 {[%clk 0:00:39]} 29. Kh2 {[%clk 0:00:14]}  Bb6 {[%clk 0:00:38]} 30. Na2 {[%clk 0:00:14]}  Bxf2 {[%clk 0:00:27]} 31. Qxf2 {[%clk 0:00:14]}  Qg7 {[%clk 0:00:23]} 32. Rc6 {[%clk 0:00:13]}  Rfd8 {[%clk 0:00:18]} 33. Nb4 {[%clk 0:00:13]}  a5 {[%clk 0:00:17]} 34. Na6 {[%clk 0:00:13]}  Rbc8 {[%clk 0:00:16]} 35. Rfc1 {[%clk 0:00:12]}  Rxc6 {[%clk 0:00:15]} 36. Rxc6 {[%clk 0:00:13]}  Ng6 {[%clk 0:00:14]} 37. Nc7 {[%clk 0:00:13]}  Nf8 {[%clk 0:00:13]} 38. Qb6 {[%clk 0:00:11]}  g4 {[%clk 0:00:11]} 39. Ne6 {[%clk 0:00:12]}  Nxe6 {[%clk 0:00:11]} 40. dxe6 {[%clk 0:00:12]}  Rf8 {[%clk 0:00:10]} 41. Rc7 {[%clk 0:00:11]}  Qg6 {[%clk 0:00:06]} 42. Qg1 {[%clk 0:00:10]}  g3+ {[%clk 0:00:05]} 43. Kh1 {[%clk 0:00:10]}  Qxe6 {[%clk 0:00:05]} 44. Qb6 {[%clk 0:00:10]}  Rf7 {[%clk 0:00:04]} 45. Rc8+ {[%clk 0:00:09]}  Kg7 {[%clk 0:00:04]} 46. Qb8 {[%clk 0:00:09]}  d5 {[%clk 0:00:02]} 47. Rg8+ {[%clk 0:00:08]}  Kf6 {[%clk 0:00:02]} 48. Qd8+ {[%clk 0:00:07]}  Qe7 {[%clk 0:00:03]} 49. Qxd5 {[%clk 0:00:06]}  Qe6 {[%clk 0:00:02]} 50. Rd8 {[%clk 0:00:05]}  Qxd5 {[%clk 0:00:02]} 51. Rxd5 {[%clk 0:00:06]}  Rc7 {[%clk 0:00:03]} 52. Rd1 {[%clk 0:00:05]}  Rc2 {[%clk 0:00:03]} 53. Rb1 {[%clk 0:00:06]}  b4 {[%clk 0:00:03]} 54. Kg1 {[%clk 0:00:06]}  bxa3 {[%clk 0:00:02]} 55. bxa3 {[%clk 0:00:05]}  Ra2 {[%clk 0:00:03]} 56. Kf1 {[%clk 0:00:05]}  Rxa3 {[%clk 0:00:03]} 57. Rb6+ {[%clk 0:00:05]}  Kg5 {[%clk 0:00:03]} 58. Re6 {[%clk 0:00:05]}  Ra1+ {[%clk 0:00:02]} 59. Ke2 {[%clk 0:00:04]}  Ra2+ {[%clk 0:00:03]} 60. Kd3 {[%clk 0:00:04]}  Rxg2 {[%clk 0:00:03]} 61. Rxe5+ {[%clk 0:00:04]}  Kh4 {[%clk 0:00:04]} 62. Rxa5 {[%clk 0:00:02]}  Rf2 {[%clk 0:00:04]} 63. Rf5 {[%clk 0:00:01]}  Rxf3+ {[%clk 0:00:04]} 64. Ke2 {[%clk 0:00:00]}  Rf2+ {[%clk 0:00:04]} 0-1


[Site "https://www.chess.com"]

[Event "Titled Tuesday Blitz August 1 Late 2023"]
[White "Ardito, Andrew"]
[Black "Hacker, Jonas"]
[WhiteFideId "2033976"]
[BlackFideId "1270968"]
[WhiteElo "2124"]
[BlackElo "2321"]
[Result "0-1"]
[Round "6"]
[TimeControl "180+1"]
[Date "2023.08.01"]
[WhiteClock "0:01:40"]
[BlackClock "0:01:36"]
[Board "131"]

1. e4 {[%clk 0:03:00]}  e5 {[%clk 0:02:59]} 2. Nf3 {[%clk 0:03:00]}  Nc6 {[%clk 0:02:57]} 3. g3 {[%clk 0:02:58]}  h5 {[%clk 0:02:53]} 4. d3 {[%clk 0:02:56]}  h4 {[%clk 0:02:48]} 5. Nxh4 {[%clk 0:02:54]}  Bc5 {[%clk 0:02:44]} 6. Qg4 {[%clk 0:02:47]}  g6 {[%clk 0:02:40]} 7. Bg5 {[%clk 0:02:35]}  Nh6 {[%clk 0:02:32]} 8. Bxd8 {[%clk 0:02:30]}  Nxg4 {[%clk 0:02:32]} 9. Bxc7 {[%clk 0:02:26]}  Nxf2 {[%clk 0:02:26]} 10. b4 {[%clk 0:02:01]}  Nxb4 {[%clk 0:02:11]} 11. Bxe5 {[%clk 0:02:00]}  Rxh4 {[%clk 0:02:05]} 12. gxh4 {[%clk 0:01:56]}  Nxc2+ {[%clk 0:01:47]} 13. Kd2 {[%clk 0:01:56]}  Nxa1 {[%clk 0:01:46]} 14. Bxa1 {[%clk 0:01:56]}  Nxh1 {[%clk 0:01:45]} 15. d4 {[%clk 0:01:40]}  Be7 {[%clk 0:01:36]} 0-1


[Site "https://www.chess.com"]